[Event "*** Titled Tuesday Blitz"]
[Site "Chess.com"]
[Date "2020.10.20"]
[Round "1"]
[White "Chesstrainer1"]
[Black "Gabrielian_Artur"]
[Result "0-1"]
[WhiteElo "2391"]
[BlackElo "2790"]
[TimeControl "180+1"]
[EndTime "10:08:04 PDT"]
[Termination "Gabrielian_Artur won on time"]

1. Nf3 {[%clk 0:03:00.9]} 1... Nf6 {[%clk 0:02:59.4]} 2. c4 {[%clk 0:03:00.6]}
2... g6 {[%clk 0:02:58.8]} 3. Nc3 {[%clk 0:03:00.4]} 3... Bg7 {[%clk 0:02:58.7]}
4. e4 {[%clk 0:03:00.9]} 4... e5 {[%clk 0:02:58.9]} 5. d4 {[%clk 0:02:54.7]}
5... exd4 {[%clk 0:02:58.5]} 6. Nxd4 {[%clk 0:02:55.6]} 6... O-O {[%clk
0:02:58.5]} 7. Be2 {[%clk 0:02:55.7]} 7... Re8 {[%clk 0:02:58.5]} 8. f3 {[%clk
0:02:55]} 8... c6 {[%clk 0:02:58.8]} 9. Bg5 {[%clk 0:02:30]} 9... Qb6 {[%clk
0:02:21.6]} 10. Nb3 {[%clk 0:02:28.4]} 10... Na6 {[%clk 0:02:16.3]} 11. Qd2
{[%clk 0:02:24.9]} 11... d5 {[%clk 0:02:09.9]} 12. Be3 {[%clk 0:02:06.4]} 12...
Qd8 {[%clk 0:02:06.3]} 13. cxd5 {[%clk 0:02:02.2]} 13... cxd5 {[%clk 0:02:04.4]}
14. Rd1 {[%clk 0:02:02.4]} 14... Be6 {[%clk 0:01:55.7]} 15. e5 {[%clk
0:01:47.3]} 15... Nd7 {[%clk 0:01:54.1]} 16. f4 {[%clk 0:01:47.4]} 16... Nb6
{[%clk 0:01:46.6]} 17. Nd4 {[%clk 0:01:27.6]} 17... Rc8 {[%clk 0:01:33.7]} 18.
Ncb5 {[%clk 0:01:08.6]} 18... Bf8 {[%clk 0:01:17.2]} 19. a3 {[%clk 0:01:01]}
19... Nc5 {[%clk 0:01:13.7]} 20. Nxa7 {[%clk 0:00:49]} 20... Ne4 {[%clk
0:01:13.3]} 21. Qa5 {[%clk 0:00:46.3]} 21... Ra8 {[%clk 0:01:06.8]} 22. O-O
{[%clk 0:00:22.5]} 22... Bd7 {[%clk 0:00:55.2]} 23. Ndb5 {[%clk 0:00:18.1]}
23... Re6 {[%clk 0:00:39.9]} 24. Qe1 {[%clk 0:00:15]} 24... Qb8 {[%clk
0:00:36.4]} 25. f5 {[%clk 0:00:12.9]} 25... gxf5 {[%clk 0:00:34.1]} 26. Rxf5
{[%clk 0:00:13.7]} 26... Rg6 {[%clk 0:00:31.6]} 27. Bh5 {[%clk 0:00:09]} 27...
Bxf5 {[%clk 0:00:31]} 28. Bxg6 {[%clk 0:00:08.2]} 28... hxg6 {[%clk 0:00:31]}
29. Bxb6 {[%clk 0:00:05.6]} 29... Qxe5 {[%clk 0:00:30.3]} 30. Bd4 {[%clk
0:00:05.1]} 30... Qf4 {[%clk 0:00:27.2]} 31. Qe3 {[%clk 0:00:04.9]} 31... Qxe3+
{[%clk 0:00:25.8]} 32. Bxe3 {[%clk 0:00:05.5]} 32... Be6 {[%clk 0:00:23.8]} 33.
Nc7 {[%clk 0:00:04.7]} 33... Rd8 {[%clk 0:00:23.6]} 34. Nxe6 {[%clk 0:00:04.6]}
34... fxe6 {[%clk 0:00:24.5]} 35. Bd4 {[%clk 0:00:03.8]} 35... Nd6 {[%clk
0:00:21.5]} 36. a4 {[%clk 0:00:02.5]} 36... Nc4 {[%clk 0:00:20.2]} 37. b3 {[%clk
0:00:02]} 37... Na5 {[%clk 0:00:20.4]} 38. Rd3 {[%clk 0:00:00.7]} 38... Ra8
{[%clk 0:00:17.5]} 39. Nb5 {[%clk 0:00:01.6]} 39... Nc6 {[%clk 0:00:17.7]} 40.
Bc3 {[%clk 0:00:01.2]} 40... e5 {[%clk 0:00:18.6]} 41. Bd2 {[%clk 0:00:01.6]}
41... d4 {[%clk 0:00:18.5]} 42. Rg3 {[%clk 0:00:02.5]} 42... Kf7 {[%clk
0:00:17.7]} 43. Rg4 {[%clk 0:00:02.8]} 43... Bg7 {[%clk 0:00:17.2]} 44. Nc7
{[%clk 0:00:02.7]} 44... Rd8 {[%clk 0:00:15.9]} 45. Nb5 {[%clk 0:00:03.6]} 45...
Bf6 {[%clk 0:00:15]} 46. h4 {[%clk 0:00:04.5]} 46... Ne7 {[%clk 0:00:13.6]} 47.
Bg5 {[%clk 0:00:05.1]} 47... Nf5 {[%clk 0:00:13.4]} 48. Bxf6 {[%clk 0:00:05.6]}
48... Kxf6 {[%clk 0:00:14.3]} 49. Kf2 {[%clk 0:00:04]} 49... d3 {[%clk
0:00:14.6]} 50. Ke1 {[%clk 0:00:03.9]} 50... d2+ {[%clk 0:00:15]} 0-1

[Event "*** Titled Tuesday Blitz"]
[Site "Chess.com"]
[Date "2020.10.20"]
[Round "1"]
[White "Bigfish1995"]
[Black "JoliyRoger"]
[Result "1-0"]
[WhiteElo "3050"]
[BlackElo "2453"]
[TimeControl "180+1"]
[EndTime "10:08:05 PDT"]
[Termination "Bigfish1995 won on time"]

1. c4 {[%clk 0:02:58.2]} 1... c5 {[%clk 0:02:59.1]} 2. b3 {[%clk 0:02:57.2]}
2... Nf6 {[%clk 0:03:00]} 3. Bb2 {[%clk 0:02:57.4]} 3... e6 {[%clk 0:03:00.9]}
4. g3 {[%clk 0:02:57.2]} 4... Be7 {[%clk 0:03:01.5]} 5. Bg2 {[%clk 0:02:57.3]}
5... O-O {[%clk 0:03:02]} 6. Nf3 {[%clk 0:02:56.9]} 6... Nc6 {[%clk 0:03:02.1]}
7. O-O {[%clk 0:02:56.9]} 7... a6 {[%clk 0:03:02.5]} 8. d4 {[%clk 0:02:56.6]}
8... cxd4 {[%clk 0:03:01.8]} 9. Nxd4 {[%clk 0:02:56.8]} 9... Qc7 {[%clk
0:03:02.7]} 10. Nc3 {[%clk 0:02:56.1]} 10... Ne5 {[%clk 0:03:02.6]} 11. Rc1
{[%clk 0:02:55]} 11... d6 {[%clk 0:03:01.7]} 12. h3 {[%clk 0:02:38.2]} 12... Rb8
{[%clk 0:03:00.9]} 13. Kh1 {[%clk 0:02:34.1]} 13... Re8 {[%clk 0:03:00.2]} 14.
f4 {[%clk 0:02:33.3]} 14... Ng6 {[%clk 0:03:00]} 15. e4 {[%clk 0:02:33.9]} 15...
Bf8 {[%clk 0:02:59.3]} 16. Qd2 {[%clk 0:02:25.4]} 16... b6 {[%clk 0:02:59.3]}
17. Rce1 {[%clk 0:01:31.4]} 17... Bb7 {[%clk 0:02:57]} 18. Kh2 {[%clk
0:01:31.5]} 18... Ba8 {[%clk 0:02:55.6]} 19. a4 {[%clk 0:01:23.9]} 19... Nd7
{[%clk 0:02:55.1]} 20. Qc2 {[%clk 0:01:19.9]} 20... Rbc8 {[%clk 0:02:49.1]} 21.
Bf3 {[%clk 0:01:17.9]} 21... h6 {[%clk 0:02:25]} 22. h4 {[%clk 0:01:17.2]} 22...
e5 {[%clk 0:02:25.6]} 23. fxe5 {[%clk 0:01:16.6]} 23... Ngxe5 {[%clk 0:02:24.3]}
24. Bg2 {[%clk 0:01:08]} 24... Nc5 {[%clk 0:02:11.1]} 25. Ba1 {[%clk 0:00:55.5]}
25... Ne6 {[%clk 0:01:56.5]} 26. Nf5 {[%clk 0:00:52.4]} 26... Qc5 {[%clk
0:01:47.5]} 27. Qd1 {[%clk 0:00:49.1]} 27... Bc6 {[%clk 0:01:21.2]} 28. Nd5
{[%clk 0:00:47.3]} 28... b5 {[%clk 0:01:06.3]} 29. cxb5 {[%clk 0:00:27]} 29...
axb5 {[%clk 0:01:06]} 30. b4 {[%clk 0:00:27.6]} 30... Qc4 {[%clk 0:00:29.7]} 31.
Nfe3 {[%clk 0:00:14.6]} 31... Qa2 {[%clk 0:00:28.4]} 32. Nc3 {[%clk 0:00:15.1]}
32... Qa3 {[%clk 0:00:22.4]} 33. axb5 {[%clk 0:00:15.6]} 33... Bb7 {[%clk
0:00:18.4]} 34. Qd2 {[%clk 0:00:12]} 34... Qxb4 {[%clk 0:00:11.3]} 35. Rb1
{[%clk 0:00:12.1]} 35... Qa5 {[%clk 0:00:11.5]} 36. Rfc1 {[%clk 0:00:10.2]}
36... Qa8 {[%clk 0:00:11.9]} 37. Ncd5 {[%clk 0:00:09.2]} 37... Bxd5 {[%clk
0:00:11.7]} 38. Nxd5 {[%clk 0:00:08.7]} 38... Qb7 {[%clk 0:00:11.2]} 39. Qe2
{[%clk 0:00:05.4]} 39... Nc5 {[%clk 0:00:09.8]} 40. Rf1 {[%clk 0:00:04.9]} 40...
Ncd3 {[%clk 0:00:09.9]} 41. Bd4 {[%clk 0:00:04.4]} 41... Nc5 {[%clk 0:00:09]}
42. Bh3 {[%clk 0:00:03.5]} 42... Ne6 {[%clk 0:00:09.2]} 43. Bxe5 {[%clk
0:00:03.2]} 43... dxe5 {[%clk 0:00:09]} 44. Qh5 {[%clk 0:00:04.1]} 44... Rc2+
{[%clk 0:00:07.4]} 45. Kh1 {[%clk 0:00:04.4]} 45... Bc5 {[%clk 0:00:05.9]} 46.
Qxe5 {[%clk 0:00:04.1]} 46... Bd4 {[%clk 0:00:05.7]} 47. Qh5 {[%clk 0:00:03.8]}
47... Qb8 {[%clk 0:00:05.8]} 48. Qxf7+ {[%clk 0:00:03.4]} 48... Kh8 {[%clk
0:00:06.1]} 49. Bxe6 {[%clk 0:00:03.2]} 1-0

[Event "*** Titled Tuesday Blitz"]
[Site "Chess.com"]
[Date "2020.10.20"]
[Round "1"]
[White "valeriocarnicelli"]
[Black "FMalexhdez"]
[Result "1-0"]
[WhiteElo "2596"]
[BlackElo "2269"]
[TimeControl "180+1"]
[EndTime "10:08:05 PDT"]
[Termination "valeriocarnicelli won by resignation"]

1. e4 {[%clk 0:03:00.9]} 1... c5 {[%clk 0:02:58]} 2. Nf3 {[%clk 0:03:00.8]} 2...
d6 {[%clk 0:02:57.9]} 3. d4 {[%clk 0:03:01]} 3... cxd4 {[%clk 0:02:58]} 4. Nxd4
{[%clk 0:03:01.9]} 4... Nf6 {[%clk 0:02:58.3]} 5. Nc3 {[%clk 0:03:02.2]} 5... a6
{[%clk 0:02:58.8]} 6. f3 {[%clk 0:03:02.3]} 6... e5 {[%clk 0:02:59.3]} 7. Nb3
{[%clk 0:03:01.8]} 7... Be6 {[%clk 0:02:59.7]} 8. Be3 {[%clk 0:03:02.5]} 8...
Nbd7 {[%clk 0:02:59.9]} 9. Qd2 {[%clk 0:03:03.1]} 9... Rc8 {[%clk 0:02:59.4]}
10. O-O-O {[%clk 0:03:03.1]} 10... Nb6 {[%clk 0:02:59.2]} 11. Qf2 {[%clk
0:03:02.2]} 11... Nfd7 {[%clk 0:02:53.6]} 12. Nd5 {[%clk 0:02:58.3]} 12... Nxd5
{[%clk 0:02:48.6]} 13. exd5 {[%clk 0:02:59.2]} 13... Bf5 {[%clk 0:02:47.6]} 14.
Bd3 {[%clk 0:02:54.5]} 14... Bxd3 {[%clk 0:02:46.5]} 15. Rxd3 {[%clk 0:02:55.4]}
15... Be7 {[%clk 0:02:46.3]} 16. h4 {[%clk 0:02:50.7]} 16... f5 {[%clk
0:02:44.8]} 17. g4 {[%clk 0:02:46.4]} 17... O-O {[%clk 0:02:44.1]} 18. gxf5
{[%clk 0:02:38.6]} 18... Rxf5 {[%clk 0:02:43.1]} 19. Rdd1 {[%clk 0:02:31.9]}
19... Qf8 {[%clk 0:02:35.8]} 20. Rh3 {[%clk 0:02:28.6]} 20... Qf7 {[%clk
0:02:35.8]} 21. Rg1 {[%clk 0:02:24.5]} 21... Rf8 {[%clk 0:02:34.1]} 22. Rhg3
{[%clk 0:02:19.9]} 22... g6 {[%clk 0:02:25.1]} 23. Bh6 {[%clk 0:02:19.3]} 23...
Rxf3 {[%clk 0:02:22.7]} 24. Rxf3 {[%clk 0:02:08.3]} 24... Qxf3 {[%clk
0:02:22.6]} 25. Qxf3 {[%clk 0:02:08.5]} 25... Rxf3 {[%clk 0:02:22.7]} 26. h5
{[%clk 0:02:06.5]} 26... Kf7 {[%clk 0:02:19.6]} 27. Nd2 {[%clk 0:02:04.4]} 27...
Rf5 {[%clk 0:02:08.5]} 28. hxg6+ {[%clk 0:02:00.7]} 28... hxg6 {[%clk
0:02:08.5]} 29. Ne4 {[%clk 0:02:00.4]} 29... Nc5 {[%clk 0:02:02.5]} 30. Nxc5
{[%clk 0:01:56]} 30... dxc5 {[%clk 0:02:02.3]} 31. Be3 {[%clk 0:01:48.6]} 31...
b5 {[%clk 0:01:57.1]} 32. Rh1 {[%clk 0:01:43.3]} 32... Kg7 {[%clk 0:01:52.2]}
33. b3 {[%clk 0:01:26.9]} 33... c4 {[%clk 0:01:41.8]} 34. bxc4 {[%clk 0:01:25]}
34... bxc4 {[%clk 0:01:41.6]} 35. Kb2 {[%clk 0:01:15.7]} 35... e4 {[%clk
0:01:41.3]} 36. Bd4+ {[%clk 0:01:12]} 36... Bf6 {[%clk 0:01:39.4]} 37. Bxf6+
{[%clk 0:01:01.5]} 37... Kxf6 {[%clk 0:01:39.4]} 38. Rd1 {[%clk 0:01:01.6]}
38... e3 {[%clk 0:01:27.6]} 39. Kc3 {[%clk 0:01:01.4]} 39... e2 {[%clk
0:01:27.1]} 40. Re1 {[%clk 0:01:01.5]} 40... Rxd5 {[%clk 0:01:26.1]} 41. Rxe2
{[%clk 0:00:50.1]} 41... Rc5 {[%clk 0:01:17.1]} 42. Kd4 {[%clk 0:00:48.1]} 42...
Rc8 {[%clk 0:01:14.1]} 43. Kd5 {[%clk 0:00:45.7]} 43... Kf5 {[%clk 0:01:08.7]}
44. Rf2+ {[%clk 0:00:44.7]} 44... Kg4 {[%clk 0:01:08.5]} 45. Rf6 {[%clk
0:00:43.9]} 45... g5 {[%clk 0:01:07]} 46. Rxa6 {[%clk 0:00:43.9]} 46... Kf3
{[%clk 0:01:05.1]} 47. Rf6+ {[%clk 0:00:41.9]} 47... Kg3 {[%clk 0:01:01.8]} 48.
a4 {[%clk 0:00:42]} 48... c3 {[%clk 0:00:58.7]} 49. a5 {[%clk 0:00:40.1]} 49...
g4 {[%clk 0:00:58.2]} 50. a6 {[%clk 0:00:39.7]} 50... Kh2 {[%clk 0:00:55.1]} 51.
Rh6+ {[%clk 0:00:37.9]} 51... Kg2 {[%clk 0:00:50.9]} 52. a7 {[%clk 0:00:37.3]}
52... g3 {[%clk 0:00:48.9]} 53. Ra6 {[%clk 0:00:36.1]} 53... Ra8 {[%clk
0:00:45.5]} 54. Kc6 {[%clk 0:00:19.7]} 54... Kf2 {[%clk 0:00:45.6]} 55. Kb7
{[%clk 0:00:19.8]} 55... g2 {[%clk 0:00:30.4]} 56. Rf6+ {[%clk 0:00:14.6]} 56...
Ke2 {[%clk 0:00:27.3]} 57. Rg6 {[%clk 0:00:13.3]} 57... Rxa7+ {[%clk 0:00:22.8]}
58. Kxa7 {[%clk 0:00:14.2]} 58... Kf1 {[%clk 0:00:20.6]} 59. Kb6 {[%clk
0:00:13.9]} 59... g1=Q+ {[%clk 0:00:20.5]} 60. Rxg1+ {[%clk 0:00:14]} 60... Kxg1
{[%clk 0:00:21]} 61. Kc5 {[%clk 0:00:14.3]} 61... Kf2 {[%clk 0:00:21.5]} 62. Kd4
{[%clk 0:00:14.4]} 62... Kf3 {[%clk 0:00:19.8]} 63. Kxc3 {[%clk 0:00:14.6]}
63... Ke4 {[%clk 0:00:20.4]} 64. Kc4 {[%clk 0:00:15]} 64... Ke5 {[%clk 0:00:21]}
65. Kc5 {[%clk 0:00:15.3]} 65... Ke6 {[%clk 0:00:20.7]} 66. Kc6 {[%clk
0:00:14.9]} 1-0

[Event "*** Titled Tuesday Blitz"]
[Site "Chess.com"]
[Date "2020.10.20"]
[Round "1"]
[White "AntonovaNadezhda"]
[Black "Gogolev_Artemy"]
[Result "0-1"]
[WhiteElo "2077"]
[BlackElo "2498"]
[TimeControl "180+1"]
[EndTime "10:08:06 PDT"]
[Termination "Gogolev_Artemy won by checkmate"]

1. d4 {[%clk 0:03:00.9]} 1... Nf6 {[%clk 0:02:56.8]} 2. Nf3 {[%clk 0:03:01.2]}
2... e6 {[%clk 0:02:55.6]} 3. Nbd2 {[%clk 0:03:01]} 3... b6 {[%clk 0:02:47.1]}
4. e4 {[%clk 0:03:00.1]} 4... d6 {[%clk 0:02:38.9]} 5. Bd3 {[%clk 0:02:59.3]}
5... Bb7 {[%clk 0:02:38.5]} 6. O-O {[%clk 0:02:58.5]} 6... Be7 {[%clk
0:02:37.4]} 7. Re1 {[%clk 0:02:58.1]} 7... O-O {[%clk 0:02:10.1]} 8. a4 {[%clk
0:02:56.2]} 8... a6 {[%clk 0:02:09.3]} 9. c3 {[%clk 0:02:50.2]} 9... Nbd7 {[%clk
0:02:06.1]} 10. Qe2 {[%clk 0:02:50]} 10... c5 {[%clk 0:02:04.6]} 11. Nf1 {[%clk
0:02:49.2]} 11... cxd4 {[%clk 0:02:03.6]} 12. cxd4 {[%clk 0:02:45.1]} 12... h6
{[%clk 0:01:56.2]} 13. h3 {[%clk 0:02:33.5]} 13... Re8 {[%clk 0:01:56.2]} 14. b4
{[%clk 0:02:26.3]} 14... d5 {[%clk 0:01:54]} 15. e5 {[%clk 0:02:24.6]} 15... Ne4
{[%clk 0:01:53.7]} 16. Bb2 {[%clk 0:02:21.8]} 16... Bxb4 {[%clk 0:01:52.5]} 17.
Rec1 {[%clk 0:02:16.1]} 17... a5 {[%clk 0:01:39.9]} 18. Bb5 {[%clk 0:02:13.9]}
18... Re7 {[%clk 0:01:29.5]} 19. N1d2 {[%clk 0:02:03.4]} 19... Nxd2 {[%clk
0:01:27.6]} 20. Nxd2 {[%clk 0:02:02.4]} 20... Nb8 {[%clk 0:01:15.4]} 21. Bc3
{[%clk 0:01:54.9]} 21... Na6 {[%clk 0:01:13.7]} 22. Nf3 {[%clk 0:01:42.2]} 22...
Rc7 {[%clk 0:01:07.1]} 23. Qd3 {[%clk 0:01:37.5]} 23... Bxc3 {[%clk 0:01:06.4]}
24. Rxc3 {[%clk 0:01:36]} 24... Nb4 {[%clk 0:01:06.1]} 25. Qd2 {[%clk
0:01:27.8]} 25... Rxc3 {[%clk 0:01:05.4]} 26. Qxc3 {[%clk 0:01:27.5]} 26... Rc8
{[%clk 0:01:05]} 27. Qd2 {[%clk 0:01:27.3]} 27... Bc6 {[%clk 0:01:00.9]} 28. Bd3
{[%clk 0:01:04.6]} 28... Be8 {[%clk 0:00:48.3]} 29. g3 {[%clk 0:00:56]} 29...
Qc7 {[%clk 0:00:47.2]} 30. Be2 {[%clk 0:00:48.1]} 30... Qc2 {[%clk 0:00:40.8]}
31. Qe1 {[%clk 0:00:40.9]} 31... Qc3 {[%clk 0:00:35]} 32. Qf1 {[%clk 0:00:38.2]}
32... Qb2 {[%clk 0:00:28]} 33. Rb1 {[%clk 0:00:36.3]} 33... Qa3 {[%clk
0:00:25.3]} 34. Ra1 {[%clk 0:00:35.8]} 34... Qb2 {[%clk 0:00:25.4]} 35. Rb1
{[%clk 0:00:35.9]} 35... Qc3 {[%clk 0:00:25.3]} 36. Ra1 {[%clk 0:00:35.3]} 36...
Qc2 {[%clk 0:00:21.5]} 37. Kg2 {[%clk 0:00:30.8]} 37... Bxa4 {[%clk 0:00:19.6]}
38. Bd1 {[%clk 0:00:30.5]} 38... Qb2 {[%clk 0:00:12.4]} 39. Bxa4 {[%clk
0:00:29.9]} 39... Rc3 {[%clk 0:00:11.5]} 40. Re1 {[%clk 0:00:20.3]} 40... Nd3
{[%clk 0:00:10.2]} 41. Re3 {[%clk 0:00:18.9]} 41... Qa3 {[%clk 0:00:09.1]} 42.
Rxd3 {[%clk 0:00:18.2]} 42... Rxd3 {[%clk 0:00:08.9]} 43. Bb5 {[%clk 0:00:16.8]}
43... Rc3 {[%clk 0:00:08.3]} 44. h4 {[%clk 0:00:14.4]} 44... Qb2 {[%clk
0:00:08.4]} 45. g4 {[%clk 0:00:13.8]} 45... Qa3 {[%clk 0:00:08.1]} 46. g5 {[%clk
0:00:10.7]} 46... Rxf3 {[%clk 0:00:08]} 47. gxh6 {[%clk 0:00:07.9]} 47... Rf4
{[%clk 0:00:08.2]} 48. hxg7 {[%clk 0:00:06.8]} 48... Qf3+ {[%clk 0:00:08]} 49.
Kg1 {[%clk 0:00:06.6]} 49... Rg4+ {[%clk 0:00:08.1]} 50. Kh2 {[%clk 0:00:05.6]}
50... Rxh4+ {[%clk 0:00:08.6]} 51. Kg1 {[%clk 0:00:05.5]} 51... Rh1# {[%clk
0:00:09.4]} 0-1

[Event "*** Titled Tuesday Blitz"]
[Site "Chess.com"]
[Date "2020.10.20"]
[Round "1"]
[White "Borsuk_Konstantin"]
[Black "ViktoriyaTarasova"]
[Result "1-0"]
[WhiteElo "2565"]
[BlackElo "2241"]
[TimeControl "180+1"]
[EndTime "10:08:08 PDT"]
[Termination "Borsuk_Konstantin won by resignation"]

1. d4 {[%clk 0:02:59.1]} 1... Nf6 {[%clk 0:02:59.3]} 2. c4 {[%clk 0:02:58.3]}
2... e6 {[%clk 0:02:59.6]} 3. Nf3 {[%clk 0:02:58.1]} 3... b6 {[%clk 0:02:58.6]}
4. g3 {[%clk 0:02:57.3]} 4... Ba6 {[%clk 0:02:58.1]} 5. Qa4 {[%clk 0:02:53.4]}
5... c5 {[%clk 0:02:51.2]} 6. Bg2 {[%clk 0:02:51.2]} 6... Bb7 {[%clk 0:02:49.1]}
7. dxc5 {[%clk 0:02:47.7]} 7... bxc5 {[%clk 0:02:44.3]} 8. O-O {[%clk
0:02:45.4]} 8... Be7 {[%clk 0:02:42.8]} 9. Rd1 {[%clk 0:02:35.6]} 9... O-O
{[%clk 0:02:41.9]} 10. Nc3 {[%clk 0:02:32.7]} 10... Qb6 {[%clk 0:02:39.7]} 11.
Qc2 {[%clk 0:02:23.9]} 11... d6 {[%clk 0:02:36.6]} 12. a3 {[%clk 0:02:11.2]}
12... Nc6 {[%clk 0:02:34.9]} 13. e3 {[%clk 0:02:09.5]} 13... Rfd8 {[%clk
0:02:31.8]} 14. Bd2 {[%clk 0:02:06.9]} 14... Rac8 {[%clk 0:02:28.7]} 15. Be1
{[%clk 0:02:06.1]} 15... Ne5 {[%clk 0:02:11.1]} 16. Nxe5 {[%clk 0:01:59]} 16...
dxe5 {[%clk 0:02:11.3]} 17. Na4 {[%clk 0:01:16.8]} 17... Qc7 {[%clk 0:02:10.1]}
18. f3 {[%clk 0:01:15.4]} 18... Rxd1 {[%clk 0:02:05.8]} 19. Rxd1 {[%clk
0:01:14.6]} 19... Rd8 {[%clk 0:02:06.4]} 20. Rxd8+ {[%clk 0:01:13.9]} 20... Qxd8
{[%clk 0:02:04.9]} 21. e4 {[%clk 0:01:13.6]} 21... h6 {[%clk 0:01:49.2]} 22. Bf2
{[%clk 0:01:07.9]} 22... Nd7 {[%clk 0:01:43.9]} 23. Bf1 {[%clk 0:00:59.5]} 23...
Qc7 {[%clk 0:01:41.9]} 24. Nc3 {[%clk 0:00:55.7]} 24... a6 {[%clk 0:01:39.8]}
25. Qa4 {[%clk 0:00:49.1]} 25... Qc6 {[%clk 0:01:31.7]} 26. Qd1 {[%clk
0:00:46.8]} 26... Kh7 {[%clk 0:01:28.2]} 27. Qb1 {[%clk 0:00:44.8]} 27... Qd6
{[%clk 0:01:22.1]} 28. Qd3 {[%clk 0:00:42.7]} 28... Qxd3 {[%clk 0:01:20.4]} 29.
Bxd3 {[%clk 0:00:43.6]} 29... Kg8 {[%clk 0:01:12.4]} 30. Na2 {[%clk 0:00:40.8]}
30... Nb8 {[%clk 0:01:02.4]} 31. b4 {[%clk 0:00:38.3]} 31... Nd7 {[%clk
0:00:56.8]} 32. Kf1 {[%clk 0:00:31]} 32... Kf8 {[%clk 0:00:56.9]} 33. Ke2 {[%clk
0:00:31.5]} 33... Ke8 {[%clk 0:00:57.2]} 34. Kd2 {[%clk 0:00:30.7]} 34... Kd8
{[%clk 0:00:57.4]} 35. Kc3 {[%clk 0:00:31.2]} 35... Kc7 {[%clk 0:00:56.9]} 36.
Nc1 {[%clk 0:00:29.1]} 36... cxb4+ {[%clk 0:00:48.6]} 37. axb4 {[%clk
0:00:28.9]} 37... Nb8 {[%clk 0:00:49.3]} 38. Nb3 {[%clk 0:00:25.1]} 38... Nc6
{[%clk 0:00:49.2]} 39. c5 {[%clk 0:00:25.3]} 39... Bg5 {[%clk 0:00:47.7]} 40.
Na1 {[%clk 0:00:22.1]} 40... h5 {[%clk 0:00:41.7]} 41. Nc2 {[%clk 0:00:22.5]}
41... g6 {[%clk 0:00:40.4]} 42. Na3 {[%clk 0:00:22.3]} 42... Be7 {[%clk
0:00:36.8]} 43. b5 {[%clk 0:00:22.1]} 43... axb5 {[%clk 0:00:36.1]} 44. Nxb5+
{[%clk 0:00:23]} 44... Kd7 {[%clk 0:00:36.1]} 45. Na3 {[%clk 0:00:21.9]} 45...
Kc7 {[%clk 0:00:35.3]} 46. Bb5 {[%clk 0:00:20.4]} 46... Bg5 {[%clk 0:00:31.6]}
47. Nc4 {[%clk 0:00:20.5]} 47... Bf6 {[%clk 0:00:30.8]} 48. Nd6 {[%clk 0:00:20]}
48... Nd8 {[%clk 0:00:28.9]} 49. Be8 {[%clk 0:00:19.4]} 49... Ba6 {[%clk
0:00:23.3]} 50. Nxf7 {[%clk 0:00:18.2]} 50... Nxf7 {[%clk 0:00:19.2]} 51. Bxf7
{[%clk 0:00:18.1]} 51... Be2 {[%clk 0:00:19.9]} 52. Bxg6 {[%clk 0:00:16.7]}
52... Bxf3 {[%clk 0:00:20.2]} 53. Kd3 {[%clk 0:00:16.7]} 53... Bg5 {[%clk
0:00:20]} 54. Bf7 {[%clk 0:00:15.4]} 54... Bg4 {[%clk 0:00:19.7]} 55. Be8 {[%clk
0:00:14.8]} 55... Kd8 {[%clk 0:00:19.5]} 56. Ba4 {[%clk 0:00:14.2]} 56... Kc7
{[%clk 0:00:20]} 57. Be1 {[%clk 0:00:14.4]} 57... Be7 {[%clk 0:00:19.5]} 58.
Ba5+ {[%clk 0:00:14.4]} 58... Kc8 {[%clk 0:00:18.7]} 59. c6 {[%clk 0:00:12.1]}
59... Bc5 {[%clk 0:00:18.4]} 60. Bb5 {[%clk 0:00:12.2]} 60... Bg1 {[%clk
0:00:18.3]} 61. Ba6+ {[%clk 0:00:12.1]} 61... Kb8 {[%clk 0:00:17.8]} 62. c7+
{[%clk 0:00:12.7]} 1-0